Workbook

Sheet Invulformulier
B1: Hoe snel verdien je een hybride warmtepomp terug?
C5: Jouw gegevens | D5: Vul de vier gele velden in
B6: Energietarieven | C6: Vul zelf je tarief in | D6: Vul zelf een tarief in, of kies met het dropdown menu een referentiejaar.
B7: Prijs per m3 | C7: 1.74 | D7: !!! Er wordt alleen met deze prijs gerekend als 'energietarieven' staat op 'vul zelf je tarief in'.
B8: Prijs per kWh | C8: 0.4 | D8: !!! Er wordt alleen met deze prijs gerekend als 'energietarieven' staat op 'vul zelf je tarief in'.
B9: Prijs warmtepomp in € | C9: 2700 | D9: Vul de prijs (inclusief installatie) in waar de subsidie die je krijgt al vanaf getrokken is.
B10: Huidig jaarverbruik gas in m3 | C10: 1169 | D10: Je vindt dit op de jaarafrekening of in de app van je energieleverancier.
B11: Huidig jaarverbruik stroom in kWh | C11: 2479 | D11: Je vindt dit op de jaarafrekening of in de app van je energieleverancier.
C13: Aannames verbruik | D13: We gaan hier uit van gemiddelden. Pas de blauwe velden alleen aan als je meer weet over jouw situatie.
B14: SCOP hybride | C14: 3.8 | D14: Het geschatte jaarrendement van de warmtepomp. 3,8 betekent dat 1kWh stroom 3,8kWh warmte oplevert.
B15: Aandeel warmtepomp voor ruimteverwarming | C15: 0.6 | D15: Het geschatte deel van de verwarming dat de warmtepomp doet voordat de cv-ketel moet bijspringen.
B16: Hoeveelheid gas voor tapwater en koken in m3 | C16: 240 | D16: De hoeveelheid gas die je gebruikt voor andere dingen dan ruimtes verwarmen.
C18: Pas onderstaande velden niet aan, dit gaat automatisch!
D19: Verbruik | F19: Energiekosten | G19: De vaste kosten voor je aansluiting zitten hier niet bij. Deze zijn bij een cv-ketel en een hybride warmtepomp hetzelfde.
B20: Huidig verbruik | C20: Gas | D20: =C10 -> 1169 | E20: m3 gas | F20: =$D$20*(HLOOKUP($C$6,Energietarieven!$C$2:$F$6,5,FALSE)) -> 2034.06
C21: Stroom | D21: =C11 -> 2479 | E21: kWh | F21: =D21*(HLOOKUP($C$6,Energietarieven!$C$2:$F$11,10,FALSE)) -> 991.6
C22: Totaal | F22: =SUM(F20:F21) -> 3025.66
B24: Verbruik cv-ketel + hybride warmtepomp | C24: Gas | D24: =C16+((1-C15)*(D20-C16)) -> 611.6 | E24: m3 gas | F24: =$D$24*(HLOOKUP($C$6,Energietarieven!$C$2:$F$6,5,FALSE)) -> 1064.184
C25: Stroom | D25: =((D20-C16)*C15)*Energietarieven!C13/C14+D21 -> 3901.836842 | E25: kWh | F25: =$D$25*(HLOOKUP($C$6,Energietarieven!$C$2:$F$11,10,FALSE)) -> 1560.734737
C26: Totaal | F26: =SUM(F24:F25) -> 2624.918737
B29: Besparing in energiekosten per jaar ten opzichte van een cv-ketel | D29: =F22-F26 -> 400.7412632
B31: Terugverdientijd hybride warmtepomp | D31: =$C$9/D29 -> 6.737514322

Sheet Energietarieven
B2: Variabele Tarieven | C2: 2020 | D2: 2021 | E2: 2022 | F2: Vul zelf je tarief in
B3: Variabel gas | C3: 0.284 | D3: 0.415 | E3: 1.1956 | F3: =F6-F5-F4 -> 1.19583
B4: ODE Gas | C4: 0.09378 | D4: 0.10297 | E4: 0.10467 | F4: 0.10467
B5: Energiebelasting | C5: 0.40301 | D5: 0.42176 | E5: 0.4395 | F5: 0.4395
B6: Totaal incl btw | C6: =SUM(C3:C5) -> 0.78079 | D6: 0.94 | E6: =SUM(E3:E5) -> 1.73977 | F6: =Invulformulier!C7 -> 1.74
B8: Variabel Elektriciteitskosten | C8: 0.0707 | D8: 0.1058 | E8: 0.3169 | F8: =F11-F10-F9 -> 0.31857
B9: ODE Elektriciteit | C9: 0.03303 | D9: 0.0363 | E9: 0.03691 | F9: 0.03691
B10: Energiebelasting | C10: 0.11822 | D10: 0.11408 | E10: 0.04452 | F10: 0.04452
B11: Totaal incl btw | C11: =SUM(C8:C10) -> 0.22195 | D11: 0.26 | E11: =SUM(E8:E10) -> 0.39833 | F11: =Invulformulier!C8 -> 0.4
B13: kWh/m3 gas | C13: 9.7
